{"text_format":"3","workbook":"xlsx","n_sheets":4,"sheets":["OBJETIVOS","DIETA","EXERCÍCIO","Gráfico de Cálculos"],"not_rendered":{"charts":2,"defined_names":19},"read":"whole","date_system":"1900"}

{"sheet":"OBJETIVOS","index":0,"n_rows":16,"n_cols":11,"rows_kept":16,"merged":[[2,1,3,1],[7,1,8,1]]}
[null,{"$f":"TODAY()","v":"2017-05-09"},"OBJETIVOS",{"$nulls":6},"Exercício","Dieta"]
[null,"DATA DE INÍCIO","DIÁRIO DE DIETA E EXERCÍCIO"]
[null,{"$f":"DataDeInício+121","v":"2017-09-07"},"ANÁLISE DA DIETA"]
[]
[null,"DATA DE FIM"]
[null,{"v":100,"d":"100.00"}]
[null,"PESO INICIAL"]
[null,{"v":80,"d":"80.00"},"ANÁLISE DO EXERCÍCIO"]
[]
[null,"PESO FINAL"]
[null,{"$f":"PesoInicial-PesoFinal","v":20}]
[null,"PERDA DE PESO \nPRETENDIDA"]
[null,{"$f":"DataDeFim-DataDeInício","v":121}]
[null,"DIAS PARA PERDER"]
[null,{"$f":"PesoPretendido/B13","v":{"v":0.1652892561983471,"d":"0.17"}}]
[null,"PESO PERDIDO \nPOR DIA"]

{"sheet":"DIETA","index":1,"n_rows":19,"n_cols":9,"rows_kept":19}
[null,"DIETA",{"$nulls":4},"Objetivos","Exercício"]
[null,{"$f":"Subtítulo","v":"DIÁRIO DE DIETA E EXERCÍCIO"}]
[null,"DATA","HORA","DESCRIÇÃO","CALORIAS","HIDRATOS DE CARBONO","PROTEÍNAS","GORDURA","NOTAS"]
[null,{"$f":"DataDeInício","v":"2017-05-09"},"07:00:00","Café",1,0,0,0,"Café da manhã"]
[null,{"$f":"DataDeInício","v":"2017-05-09"},"08:00:00","Bagel",10,10,2,10,"Pequeno-almoço ligeiro"]
[null,{"$f":"DataDeInício","v":"2017-05-09"},"12:00:00","Almoço",283,46,18,{"v":3.5,"d":"4"},"Sanduíche de peru"]
[null,{"$f":"DataDeInício","v":"2017-05-09"},"19:00:00","Jantar",500,42,35,25,"Caçarola de batatas"]
[null,{"$f":"DataDeInício+1","v":"2017-05-10"},"07:00:00","Café",1,0,0,0,"Café da manhã"]
[null,{"$f":"DataDeInício+1","v":"2017-05-10"},"08:00:00","Torrada",10,10,2,10,"Pequeno-almoço ligeiro"]
[null,{"$f":"DataDeInício+1","v":"2017-05-10"},"12:00:00","Almoço",189,26,3,8,"Sanduíche"]
[null,{"$f":"DataDeInício+1","v":"2017-05-10"},"19:00:00","Jantar",477,62,{"v":13.5,"d":"14"},21,"Jantar"]
[null,{"$f":"DataDeInício+2","v":"2017-05-11"},"07:00:00","Café",1,0,0,0,"Café da manhã"]
[null,{"$f":"DataDeInício+2","v":"2017-05-11"},"08:00:00","Bagel",245,48,10,{"v":1.5,"d":"2"},"Pequeno-almoço ligeiro"]
[null,{"$f":"DataDeInício+2","v":"2017-05-11"},"12:00:00","Almoço",247,11,43,5,"Salada"]
[null,{"$f":"DataDeInício+2","v":"2017-05-11"},"19:00:00","Jantar",456,64,32,22,"Jantar"]
[null,{"$f":"DataDeInício+3","v":"2017-05-12"},"07:00:00","Torrada",10,10,2,10,"Pequeno-almoço ligeiro"]
[null,{"$f":"DataDeInício+3","v":"2017-05-12"},"10:00:00","Café",135,{"v":12.36,"d":"12"},{"v":8.81,"d":"9"},{"v":5.51,"d":"6"},"Latte"]
[null,{"$f":"DataDeInício+3","v":"2017-05-12"},"12:15:00","Almoço",184,7,{"v":5.43,"d":"5"},15,"Salada"]
[null,{"$f":"DataDeInício+5","v":"2017-05-14"},"19:00:00","Jantar",477,62,{"v":13.5,"d":"14"},21,"Jantar"]

{"sheet":"EXERCÍCIO","index":2,"n_rows":20,"n_cols":7,"rows_kept":20}
[null,"EXERCÍCIO",{"$nulls":3},"Dieta","Objetivos"]
[null,{"$f":"Subtítulo","v":"DIÁRIO DE DIETA E EXERCÍCIO"}]
[null,"DATA","DURAÇÃO (MIN)","CALORIAS QUEIMADAS","NOTAS"]
[null,{"$f":"DataDeInício+4","v":"2017-05-13"},30,120,"Exercício de passadeira"]
[null,{"$f":"B4+1","v":"2017-05-14"},60,180,"Aeróbica de baixo impacto"]
[null,{"$f":"B5+1","v":"2017-05-15"},60,350,"Exercício extremo"]
[null,"2017-05-16",30,150,"Exercício de passadeira"]
[null,"2017-05-17",25,125,"Corrida"]
[null,"2017-05-18",20,285,"Exercício de passadeira"]
[null,"2017-05-19",40,205,"Corrida"]
[null,"2017-05-20",30,335,"Corrida"]
[null,"2017-05-21",40,175,"Corrida"]
[null,"2017-05-22",45,325,"Exercício de passadeira"]
[null,"2017-05-23",40,270,"Corrida"]
[null,"2017-05-24",20,295,"Exercício de passadeira"]
[null,{"$f":"B15+1","v":"2017-05-25"},45,350,"Corrida"]
[null,"2017-05-26",35,320,"Corrida"]
[null,"2017-05-27",40,290,"Corrida"]
[null,{"$f":"B18+1","v":"2017-05-28"},25,265,"Exercício de passadeira"]
[null,"2017-05-29",20,195,"Corrida"]

{"sheet":"Gráfico de Cálculos","index":3,"n_rows":41,"n_cols":10,"rows_kept":41,"hidden":true,"merged":[[1,1,1,9],[19,1,19,9]]}
[]
[null,"DADOS DO GRÁFICO DE ANÁLISE DA DIETA"]
[]
[null,"Linha inicial",{"$f":"ROW(Dieta[[#Headers],[DATA]])+1","v":4},"DATA","DIA","GORDURA","PROTEÍNAS","HIDRATOS DE CARBONO","CALORIAS","Número"]
[null,"Última entrada da dieta",{"$f":"MATCH(9.99E+307,Dieta[DATA])+LinhaInicialDaDieta-1","v":19},{"$f":"IFERROR(IF(INDEX(Dieta[],FimDaDieta-LinhaInicialDaDieta-J5,1)<>\"\",INDEX(Dieta[],FimDaDieta-LinhaInicialDaDieta-J5,1),\"\"),\"\")","v":"2017-05-09"},{"$f":"UPPER(TEXT(D5,\"DDD\"))","v":"TER"},{"$f":"IFERROR((IF(INDEX(Dieta[],FimDaDieta-LinhaInicialDaDieta-J5,1)<>\"\",INDEX(Dieta[],FimDaDieta-LinhaInicialDaDieta-J5,7),NA())),NA())","v":3.5},{"$f":"IFERROR((IF(INDEX(Dieta[],FimDaDieta-LinhaInicialDaDieta-J5,1)<>\"\",INDEX(Dieta[],FimDaDieta-LinhaInicialDaDieta-J5,6),NA())),NA())","v":18},{"$f":"IFERROR((IF(INDEX(Dieta[],FimDaDieta-LinhaInicialDaDieta-J5,1)<>\"\",INDEX(Dieta[],FimDaDieta-LinhaInicialDaDieta-J5,5),NA())),NA())","v":46},{"$f":"IFERROR((IF(INDEX(Dieta[],FimDaDieta-LinhaInicialDaDieta-J5,1)<>\"\",INDEX(Dieta[],FimDaDieta-LinhaInicialDaDieta-J5,4),NA())),NA())","v":283},12]
[{"$nulls":3},{"$f":"IFERROR(IF(INDEX(Dieta[],FimDaDieta-LinhaInicialDaDieta-J6,1)<>\"\",INDEX(Dieta[],FimDaDieta-LinhaInicialDaDieta-J6,1),\"\"),\"\")","v":"2017-05-09"},"TER",{"$f":"IFERROR((IF(INDEX(Dieta[],FimDaDieta-LinhaInicialDaDieta-J6,1)<>\"\",INDEX(Dieta[],FimDaDieta-LinhaInicialDaDieta-J6,7),NA())),NA())","v":25},{"$f":"IFERROR((IF(INDEX(Dieta[],FimDaDieta-LinhaInicialDaDieta-J6,1)<>\"\",INDEX(Dieta[],FimDaDieta-LinhaInicialDaDieta-J6,6),NA())),NA())","v":35},{"$f":"IFERROR((IF(INDEX(Dieta[],FimDaDieta-LinhaInicialDaDieta-J6,1)<>\"\",INDEX(Dieta[],FimDaDieta-LinhaInicialDaDieta-J6,5),NA())),NA())","v":42},{"$f":"IFERROR((IF(INDEX(Dieta[],FimDaDieta-LinhaInicialDaDieta-J6,1)<>\"\",INDEX(Dieta[],FimDaDieta-LinhaInicialDaDieta-J6,4),NA())),NA())","v":500},11]
[{"$nulls":3},{"$f":"IFERROR(IF(INDEX(Dieta[],FimDaDieta-LinhaInicialDaDieta-J7,1)<>\"\",INDEX(Dieta[],FimDaDieta-LinhaInicialDaDieta-J7,1),\"\"),\"\")","v":"2017-05-10"},"QUA",{"$f":"IFERROR((IF(INDEX(Dieta[],FimDaDieta-LinhaInicialDaDieta-J7,1)<>\"\",INDEX(Dieta[],FimDaDieta-LinhaInicialDaDieta-J7,7),NA())),NA())","v":0},{"$f":"IFERROR((IF(INDEX(Dieta[],FimDaDieta-LinhaInicialDaDieta-J7,1)<>\"\",INDEX(Dieta[],FimDaDieta-LinhaInicialDaDieta-J7,6),NA())),NA())","v":0},{"$f":"IFERROR((IF(INDEX(Dieta[],FimDaDieta-LinhaInicialDaDieta-J7,1)<>\"\",INDEX(Dieta[],FimDaDieta-LinhaInicialDaDieta-J7,5),NA())),NA())","v":0},{"$f":"IFERROR((IF(INDEX(Dieta[],FimDaDieta-LinhaInicialDaDieta-J7,1)<>\"\",INDEX(Dieta[],FimDaDieta-LinhaInicialDaDieta-J7,4),NA())),NA())","v":1},10]
[{"$nulls":3},{"$f":"IFERROR(IF(INDEX(Dieta[],FimDaDieta-LinhaInicialDaDieta-J8,1)<>\"\",INDEX(Dieta[],FimDaDieta-LinhaInicialDaDieta-J8,1),\"\"),\"\")","v":"2017-05-10"},"QUA",{"$f":"IFERROR((IF(INDEX(Dieta[],FimDaDieta-LinhaInicialDaDieta-J8,1)<>\"\",INDEX(Dieta[],FimDaDieta-LinhaInicialDaDieta-J8,7),NA())),NA())","v":10},{"$f":"IFERROR((IF(INDEX(Dieta[],FimDaDieta-LinhaInicialDaDieta-J8,1)<>\"\",INDEX(Dieta[],FimDaDieta-LinhaInicialDaDieta-J8,6),NA())),NA())","v":2},{"$f":"IFERROR((IF(INDEX(Dieta[],FimDaDieta-LinhaInicialDaDieta-J8,1)<>\"\",INDEX(Dieta[],FimDaDieta-LinhaInicialDaDieta-J8,5),NA())),NA())","v":10},{"$f":"IFERROR((IF(INDEX(Dieta[],FimDaDieta-LinhaInicialDaDieta-J8,1)<>\"\",INDEX(Dieta[],FimDaDieta-LinhaInicialDaDieta-J8,4),NA())),NA())","v":10},9]
[{"$nulls":3},{"$f":"IFERROR(IF(INDEX(Dieta[],FimDaDieta-LinhaInicialDaDieta-J9,1)<>\"\",INDEX(Dieta[],FimDaDieta-LinhaInicialDaDieta-J9,1),\"\"),\"\")","v":"2017-05-10"},"QUA",{"$f":"IFERROR((IF(INDEX(Dieta[],FimDaDieta-LinhaInicialDaDieta-J9,1)<>\"\",INDEX(Dieta[],FimDaDieta-LinhaInicialDaDieta-J9,7),NA())),NA())","v":8},{"$f":"IFERROR((IF(INDEX(Dieta[],FimDaDieta-LinhaInicialDaDieta-J9,1)<>\"\",INDEX(Dieta[],FimDaDieta-LinhaInicialDaDieta-J9,6),NA())),NA())","v":3},{"$f":"IFERROR((IF(INDEX(Dieta[],FimDaDieta-LinhaInicialDaDieta-J9,1)<>\"\",INDEX(Dieta[],FimDaDieta-LinhaInicialDaDieta-J9,5),NA())),NA())","v":26},{"$f":"IFERROR((IF(INDEX(Dieta[],FimDaDieta-LinhaInicialDaDieta-J9,1)<>\"\",INDEX(Dieta[],FimDaDieta-LinhaInicialDaDieta-J9,4),NA())),NA())","v":189},8]
[{"$nulls":3},{"$f":"IFERROR(IF(INDEX(Dieta[],FimDaDieta-LinhaInicialDaDieta-J10,1)<>\"\",INDEX(Dieta[],FimDaDieta-LinhaInicialDaDieta-J10,1),\"\"),\"\")","v":"2017-05-10"},"QUA",{"$f":"IFERROR((IF(INDEX(Dieta[],FimDaDieta-LinhaInicialDaDieta-J10,1)<>\"\",INDEX(Dieta[],FimDaDieta-LinhaInicialDaDieta-J10,7),NA())),NA())","v":21},{"$f":"IFERROR((IF(INDEX(Dieta[],FimDaDieta-LinhaInicialDaDieta-J10,1)<>\"\",INDEX(Dieta[],FimDaDieta-LinhaInicialDaDieta-J10,6),NA())),NA())","v":13.5},{"$f":"IFERROR((IF(INDEX(Dieta[],FimDaDieta-LinhaInicialDaDieta-J10,1)<>\"\",INDEX(Dieta[],FimDaDieta-LinhaInicialDaDieta-J10,5),NA())),NA())","v":62},{"$f":"IFERROR((IF(INDEX(Dieta[],FimDaDieta-LinhaInicialDaDieta-J10,1)<>\"\",INDEX(Dieta[],FimDaDieta-LinhaInicialDaDieta-J10,4),NA())),NA())","v":477},7]
[{"$nulls":3},{"$f":"IFERROR(IF(INDEX(Dieta[],FimDaDieta-LinhaInicialDaDieta-J11,1)<>\"\",INDEX(Dieta[],FimDaDieta-LinhaInicialDaDieta-J11,1),\"\"),\"\")","v":"2017-05-11"},"QUI",{"$f":"IFERROR((IF(INDEX(Dieta[],FimDaDieta-LinhaInicialDaDieta-J11,1)<>\"\",INDEX(Dieta[],FimDaDieta-LinhaInicialDaDieta-J11,7),NA())),NA())","v":0},{"$f":"IFERROR((IF(INDEX(Dieta[],FimDaDieta-LinhaInicialDaDieta-J11,1)<>\"\",INDEX(Dieta[],FimDaDieta-LinhaInicialDaDieta-J11,6),NA())),NA())","v":0},{"$f":"IFERROR((IF(INDEX(Dieta[],FimDaDieta-LinhaInicialDaDieta-J11,1)<>\"\",INDEX(Dieta[],FimDaDieta-LinhaInicialDaDieta-J11,5),NA())),NA())","v":0},{"$f":"IFERROR((IF(INDEX(Dieta[],FimDaDieta-LinhaInicialDaDieta-J11,1)<>\"\",INDEX(Dieta[],FimDaDieta-LinhaInicialDaDieta-J11,4),NA())),NA())","v":1},6]
[{"$nulls":3},{"$f":"IFERROR(IF(INDEX(Dieta[],FimDaDieta-LinhaInicialDaDieta-J12,1)<>\"\",INDEX(Dieta[],FimDaDieta-LinhaInicialDaDieta-J12,1),\"\"),\"\")","v":"2017-05-11"},"QUI",{"$f":"IFERROR((IF(INDEX(Dieta[],FimDaDieta-LinhaInicialDaDieta-J12,1)<>\"\",INDEX(Dieta[],FimDaDieta-LinhaInicialDaDieta-J12,7),NA())),NA())","v":1.5},{"$f":"IFERROR((IF(INDEX(Dieta[],FimDaDieta-LinhaInicialDaDieta-J12,1)<>\"\",INDEX(Dieta[],FimDaDieta-LinhaInicialDaDieta-J12,6),NA())),NA())","v":10},{"$f":"IFERROR((IF(INDEX(Dieta[],FimDaDieta-LinhaInicialDaDieta-J12,1)<>\"\",INDEX(Dieta[],FimDaDieta-LinhaInicialDaDieta-J12,5),NA())),NA())","v":48},{"$f":"IFERROR((IF(INDEX(Dieta[],FimDaDieta-LinhaInicialDaDieta-J12,1)<>\"\",INDEX(Dieta[],FimDaDieta-LinhaInicialDaDieta-J12,4),NA())),NA())","v":245},5]
[{"$nulls":3},{"$f":"IFERROR(IF(INDEX(Dieta[],FimDaDieta-LinhaInicialDaDieta-J13,1)<>\"\",INDEX(Dieta[],FimDaDieta-LinhaInicialDaDieta-J13,1),\"\"),\"\")","v":"2017-05-11"},"QUI",{"$f":"IFERROR((IF(INDEX(Dieta[],FimDaDieta-LinhaInicialDaDieta-J13,1)<>\"\",INDEX(Dieta[],FimDaDieta-LinhaInicialDaDieta-J13,7),NA())),NA())","v":5},{"$f":"IFERROR((IF(INDEX(Dieta[],FimDaDieta-LinhaInicialDaDieta-J13,1)<>\"\",INDEX(Dieta[],FimDaDieta-LinhaInicialDaDieta-J13,6),NA())),NA())","v":43},{"$f":"IFERROR((IF(INDEX(Dieta[],FimDaDieta-LinhaInicialDaDieta-J13,1)<>\"\",INDEX(Dieta[],FimDaDieta-LinhaInicialDaDieta-J13,5),NA())),NA())","v":11},{"$f":"IFERROR((IF(INDEX(Dieta[],FimDaDieta-LinhaInicialDaDieta-J13,1)<>\"\",INDEX(Dieta[],FimDaDieta-LinhaInicialDaDieta-J13,4),NA())),NA())","v":247},4]
[{"$nulls":3},{"$f":"IFERROR(IF(INDEX(Dieta[],FimDaDieta-LinhaInicialDaDieta-J14,1)<>\"\",INDEX(Dieta[],FimDaDieta-LinhaInicialDaDieta-J14,1),\"\"),\"\")","v":"2017-05-11"},"QUI",{"$f":"IFERROR((IF(INDEX(Dieta[],FimDaDieta-LinhaInicialDaDieta-J14,1)<>\"\",INDEX(Dieta[],FimDaDieta-LinhaInicialDaDieta-J14,7),NA())),NA())","v":22},{"$f":"IFERROR((IF(INDEX(Dieta[],FimDaDieta-LinhaInicialDaDieta-J14,1)<>\"\",INDEX(Dieta[],FimDaDieta-LinhaInicialDaDieta-J14,6),NA())),NA())","v":32},{"$f":"IFERROR((IF(INDEX(Dieta[],FimDaDieta-LinhaInicialDaDieta-J14,1)<>\"\",INDEX(Dieta[],FimDaDieta-LinhaInicialDaDieta-J14,5),NA())),NA())","v":64},{"$f":"IFERROR((IF(INDEX(Dieta[],FimDaDieta-LinhaInicialDaDieta-J14,1)<>\"\",INDEX(Dieta[],FimDaDieta-LinhaInicialDaDieta-J14,4),NA())),NA())","v":456},3]
[{"$nulls":3},{"$f":"IFERROR(IF(INDEX(Dieta[],FimDaDieta-LinhaInicialDaDieta-J15,1)<>\"\",INDEX(Dieta[],FimDaDieta-LinhaInicialDaDieta-J15,1),\"\"),\"\")","v":"2017-05-12"},"SEX",{"$f":"IFERROR((IF(INDEX(Dieta[],FimDaDieta-LinhaInicialDaDieta-J15,1)<>\"\",INDEX(Dieta[],FimDaDieta-LinhaInicialDaDieta-J15,7),NA())),NA())","v":10},{"$f":"IFERROR((IF(INDEX(Dieta[],FimDaDieta-LinhaInicialDaDieta-J15,1)<>\"\",INDEX(Dieta[],FimDaDieta-LinhaInicialDaDieta-J15,6),NA())),NA())","v":2},{"$f":"IFERROR((IF(INDEX(Dieta[],FimDaDieta-LinhaInicialDaDieta-J15,1)<>\"\",INDEX(Dieta[],FimDaDieta-LinhaInicialDaDieta-J15,5),NA())),NA())","v":10},{"$f":"IFERROR((IF(INDEX(Dieta[],FimDaDieta-LinhaInicialDaDieta-J15,1)<>\"\",INDEX(Dieta[],FimDaDieta-LinhaInicialDaDieta-J15,4),NA())),NA())","v":10},2]
[{"$nulls":3},{"$f":"IFERROR(IF(INDEX(Dieta[],FimDaDieta-LinhaInicialDaDieta-J16,1)<>\"\",INDEX(Dieta[],FimDaDieta-LinhaInicialDaDieta-J16,1),\"\"),\"\")","v":"2017-05-12"},"SEX",{"$f":"IFERROR((IF(INDEX(Dieta[],FimDaDieta-LinhaInicialDaDieta-J16,1)<>\"\",INDEX(Dieta[],FimDaDieta-LinhaInicialDaDieta-J16,7),NA())),NA())","v":5.51},{"$f":"IFERROR((IF(INDEX(Dieta[],FimDaDieta-LinhaInicialDaDieta-J16,1)<>\"\",INDEX(Dieta[],FimDaDieta-LinhaInicialDaDieta-J16,6),NA())),NA())","v":8.81},{"$f":"IFERROR((IF(INDEX(Dieta[],FimDaDieta-LinhaInicialDaDieta-J16,1)<>\"\",INDEX(Dieta[],FimDaDieta-LinhaInicialDaDieta-J16,5),NA())),NA())","v":12.36},{"$f":"IFERROR((IF(INDEX(Dieta[],FimDaDieta-LinhaInicialDaDieta-J16,1)<>\"\",INDEX(Dieta[],FimDaDieta-LinhaInicialDaDieta-J16,4),NA())),NA())","v":135},1]
[{"$nulls":3},{"$f":"IFERROR(IF(INDEX(Dieta[],FimDaDieta-LinhaInicialDaDieta-J17,1)<>\"\",INDEX(Dieta[],FimDaDieta-LinhaInicialDaDieta-J17,1),\"\"),\"\")","v":"2017-05-12"},"SEX",{"$f":"IFERROR((IF(INDEX(Dieta[],FimDaDieta-LinhaInicialDaDieta-J17,1)<>\"\",INDEX(Dieta[],FimDaDieta-LinhaInicialDaDieta-J17,7),NA())),NA())","v":15},{"$f":"IFERROR((IF(INDEX(Dieta[],FimDaDieta-LinhaInicialDaDieta-J17,1)<>\"\",INDEX(Dieta[],FimDaDieta-LinhaInicialDaDieta-J17,6),NA())),NA())","v":5.43},{"$f":"IFERROR((IF(INDEX(Dieta[],FimDaDieta-LinhaInicialDaDieta-J17,1)<>\"\",INDEX(Dieta[],FimDaDieta-LinhaInicialDaDieta-J17,5),NA())),NA())","v":7},{"$f":"IFERROR((IF(INDEX(Dieta[],FimDaDieta-LinhaInicialDaDieta-J17,1)<>\"\",INDEX(Dieta[],FimDaDieta-LinhaInicialDaDieta-J17,4),NA())),NA())","v":184},0]
[{"$nulls":3},{"$f":"IFERROR(IF(INDEX(Dieta[],FimDaDieta-LinhaInicialDaDieta-J18,1)<>\"\",INDEX(Dieta[],FimDaDieta-LinhaInicialDaDieta-J18,1),\"\"),\"\")","v":"2017-05-14"},"DOM",{"$f":"IFERROR((IF(INDEX(Dieta[],FimDaDieta-LinhaInicialDaDieta-J18,1)<>\"\",INDEX(Dieta[],FimDaDieta-LinhaInicialDaDieta-J18,7),NA())),NA())","v":21},{"$f":"IFERROR((IF(INDEX(Dieta[],FimDaDieta-LinhaInicialDaDieta-J18,1)<>\"\",INDEX(Dieta[],FimDaDieta-LinhaInicialDaDieta-J18,6),NA())),NA())","v":13.5},{"$f":"IFERROR((IF(INDEX(Dieta[],FimDaDieta-LinhaInicialDaDieta-J18,1)<>\"\",INDEX(Dieta[],FimDaDieta-LinhaInicialDaDieta-J18,5),NA())),NA())","v":62},{"$f":"IFERROR((IF(INDEX(Dieta[],FimDaDieta-LinhaInicialDaDieta-J18,1)<>\"\",INDEX(Dieta[],FimDaDieta-LinhaInicialDaDieta-J18,4),NA())),NA())","v":477},-1]
[]
[null,"DADOS DO GRÁFICO DE ANÁLISE DO EXERCÍCIO"]
[]
[null,"Linha inicial",{"$f":"ROW(Exercício[[#Headers],[DATA]])+1","v":4},"DATA","DIA","DURAÇÃO (MIN)","CALORIAS QUEIMADAS","Número"]
[null,"Última entrada do exercício",{"$f":"MATCH(9.99E+307,Exercício[DATA])+LinhaInicialDoExercício-1","v":20},{"$f":"IFERROR(IF(INDEX(Exercício[],FimDoExercício-LinhaInicialDoExercício-H23,1)<>\"\",INDEX(Exercício[],FimDoExercício-LinhaInicialDoExercício-H23,1)),\"\")","v":"2017-05-29"},{"$f":"UPPER(TEXT(D23,\"DDD\"))","v":"SEG"},{"$f":"IFERROR((IF(INDEX(Exercício[],FimDoExercício-LinhaInicialDoExercício-H23,1)<>\"\",INDEX(Exercício[],FimDoExercício-LinhaInicialDoExercício-H23,2),0)),0)","v":20},{"$f":"IFERROR((IF(INDEX(Exercício[],FimDoExercício-LinhaInicialDoExercício-H23,2)<>\"\",INDEX(Exercício[],FimDoExercício-LinhaInicialDoExercício-H23,3),0)),0)","v":195},-1]
[{"$nulls":3},{"$f":"IFERROR(IF(INDEX(Exercício[],FimDoExercício-LinhaInicialDoExercício-H24,1)<>\"\",INDEX(Exercício[],FimDoExercício-LinhaInicialDoExercício-H24,1)),\"\")","v":"2017-05-28"},"DOM",{"$f":"IFERROR((IF(INDEX(Exercício[],FimDoExercício-LinhaInicialDoExercício-H24,1)<>\"\",INDEX(Exercício[],FimDoExercício-LinhaInicialDoExercício-H24,2),0)),0)","v":25},{"$f":"IFERROR((IF(INDEX(Exercício[],FimDoExercício-LinhaInicialDoExercício-H24,2)<>\"\",INDEX(Exercício[],FimDoExercício-LinhaInicialDoExercício-H24,3),0)),0)","v":265},0]
[{"$nulls":3},{"$f":"IFERROR(IF(INDEX(Exercício[],FimDoExercício-LinhaInicialDoExercício-H25,1)<>\"\",INDEX(Exercício[],FimDoExercício-LinhaInicialDoExercício-H25,1)),\"\")","v":"2017-05-27"},"SÁB",{"$f":"IFERROR((IF(INDEX(Exercício[],FimDoExercício-LinhaInicialDoExercício-H25,1)<>\"\",INDEX(Exercício[],FimDoExercício-LinhaInicialDoExercício-H25,2),0)),0)","v":40},{"$f":"IFERROR((IF(INDEX(Exercício[],FimDoExercício-LinhaInicialDoExercício-H25,2)<>\"\",INDEX(Exercício[],FimDoExercício-LinhaInicialDoExercício-H25,3),0)),0)","v":290},1]
[{"$nulls":3},{"$f":"IFERROR(IF(INDEX(Exercício[],FimDoExercício-LinhaInicialDoExercício-H26,1)<>\"\",INDEX(Exercício[],FimDoExercício-LinhaInicialDoExercício-H26,1)),\"\")","v":"2017-05-26"},"SEX",{"$f":"IFERROR((IF(INDEX(Exercício[],FimDoExercício-LinhaInicialDoExercício-H26,1)<>\"\",INDEX(Exercício[],FimDoExercício-LinhaInicialDoExercício-H26,2),0)),0)","v":35},{"$f":"IFERROR((IF(INDEX(Exercício[],FimDoExercício-LinhaInicialDoExercício-H26,2)<>\"\",INDEX(Exercício[],FimDoExercício-LinhaInicialDoExercício-H26,3),0)),0)","v":320},2]
[{"$nulls":3},{"$f":"IFERROR(IF(INDEX(Exercício[],FimDoExercício-LinhaInicialDoExercício-H27,1)<>\"\",INDEX(Exercício[],FimDoExercício-LinhaInicialDoExercício-H27,1)),\"\")","v":"2017-05-25"},"QUI",{"$f":"IFERROR((IF(INDEX(Exercício[],FimDoExercício-LinhaInicialDoExercício-H27,1)<>\"\",INDEX(Exercício[],FimDoExercício-LinhaInicialDoExercício-H27,2),0)),0)","v":45},{"$f":"IFERROR((IF(INDEX(Exercício[],FimDoExercício-LinhaInicialDoExercício-H27,2)<>\"\",INDEX(Exercício[],FimDoExercício-LinhaInicialDoExercício-H27,3),0)),0)","v":350},3]
[{"$nulls":3},{"$f":"IFERROR(IF(INDEX(Exercício[],FimDoExercício-LinhaInicialDoExercício-H28,1)<>\"\",INDEX(Exercício[],FimDoExercício-LinhaInicialDoExercício-H28,1)),\"\")","v":"2017-05-24"},"QUA",{"$f":"IFERROR((IF(INDEX(Exercício[],FimDoExercício-LinhaInicialDoExercício-H28,1)<>\"\",INDEX(Exercício[],FimDoExercício-LinhaInicialDoExercício-H28,2),0)),0)","v":20},{"$f":"IFERROR((IF(INDEX(Exercício[],FimDoExercício-LinhaInicialDoExercício-H28,2)<>\"\",INDEX(Exercício[],FimDoExercício-LinhaInicialDoExercício-H28,3),0)),0)","v":295},4]
[{"$nulls":3},{"$f":"IFERROR(IF(INDEX(Exercício[],FimDoExercício-LinhaInicialDoExercício-H29,1)<>\"\",INDEX(Exercício[],FimDoExercício-LinhaInicialDoExercício-H29,1)),\"\")","v":"2017-05-23"},"TER",{"$f":"IFERROR((IF(INDEX(Exercício[],FimDoExercício-LinhaInicialDoExercício-H29,1)<>\"\",INDEX(Exercício[],FimDoExercício-LinhaInicialDoExercício-H29,2),0)),0)","v":40},{"$f":"IFERROR((IF(INDEX(Exercício[],FimDoExercício-LinhaInicialDoExercício-H29,2)<>\"\",INDEX(Exercício[],FimDoExercício-LinhaInicialDoExercício-H29,3),0)),0)","v":270},5]
[{"$nulls":3},{"$f":"IFERROR(IF(INDEX(Exercício[],FimDoExercício-LinhaInicialDoExercício-H30,1)<>\"\",INDEX(Exercício[],FimDoExercício-LinhaInicialDoExercício-H30,1)),\"\")","v":"2017-05-22"},"SEG",{"$f":"IFERROR((IF(INDEX(Exercício[],FimDoExercício-LinhaInicialDoExercício-H30,1)<>\"\",INDEX(Exercício[],FimDoExercício-LinhaInicialDoExercício-H30,2),0)),0)","v":45},{"$f":"IFERROR((IF(INDEX(Exercício[],FimDoExercício-LinhaInicialDoExercício-H30,2)<>\"\",INDEX(Exercício[],FimDoExercício-LinhaInicialDoExercício-H30,3),0)),0)","v":325},6]
[{"$nulls":3},{"$f":"IFERROR(IF(INDEX(Exercício[],FimDoExercício-LinhaInicialDoExercício-H31,1)<>\"\",INDEX(Exercício[],FimDoExercício-LinhaInicialDoExercício-H31,1)),\"\")","v":"2017-05-21"},"DOM",{"$f":"IFERROR((IF(INDEX(Exercício[],FimDoExercício-LinhaInicialDoExercício-H31,1)<>\"\",INDEX(Exercício[],FimDoExercício-LinhaInicialDoExercício-H31,2),0)),0)","v":40},{"$f":"IFERROR((IF(INDEX(Exercício[],FimDoExercício-LinhaInicialDoExercício-H31,2)<>\"\",INDEX(Exercício[],FimDoExercício-LinhaInicialDoExercício-H31,3),0)),0)","v":175},7]
[{"$nulls":3},{"$f":"IFERROR(IF(INDEX(Exercício[],FimDoExercício-LinhaInicialDoExercício-H32,1)<>\"\",INDEX(Exercício[],FimDoExercício-LinhaInicialDoExercício-H32,1)),\"\")","v":"2017-05-20"},"SÁB",{"$f":"IFERROR((IF(INDEX(Exercício[],FimDoExercício-LinhaInicialDoExercício-H32,1)<>\"\",INDEX(Exercício[],FimDoExercício-LinhaInicialDoExercício-H32,2),0)),0)","v":30},{"$f":"IFERROR((IF(INDEX(Exercício[],FimDoExercício-LinhaInicialDoExercício-H32,2)<>\"\",INDEX(Exercício[],FimDoExercício-LinhaInicialDoExercício-H32,3),0)),0)","v":335},8]
[{"$nulls":3},{"$f":"IFERROR(IF(INDEX(Exercício[],FimDoExercício-LinhaInicialDoExercício-H33,1)<>\"\",INDEX(Exercício[],FimDoExercício-LinhaInicialDoExercício-H33,1)),\"\")","v":"2017-05-19"},"SEX",{"$f":"IFERROR((IF(INDEX(Exercício[],FimDoExercício-LinhaInicialDoExercício-H33,1)<>\"\",INDEX(Exercício[],FimDoExercício-LinhaInicialDoExercício-H33,2),0)),0)","v":40},{"$f":"IFERROR((IF(INDEX(Exercício[],FimDoExercício-LinhaInicialDoExercício-H33,2)<>\"\",INDEX(Exercício[],FimDoExercício-LinhaInicialDoExercício-H33,3),0)),0)","v":205},9]
[{"$nulls":3},{"$f":"IFERROR(IF(INDEX(Exercício[],FimDoExercício-LinhaInicialDoExercício-H34,1)<>\"\",INDEX(Exercício[],FimDoExercício-LinhaInicialDoExercício-H34,1)),\"\")","v":"2017-05-18"},"QUI",{"$f":"IFERROR((IF(INDEX(Exercício[],FimDoExercício-LinhaInicialDoExercício-H34,1)<>\"\",INDEX(Exercício[],FimDoExercício-LinhaInicialDoExercício-H34,2),0)),0)","v":20},{"$f":"IFERROR((IF(INDEX(Exercício[],FimDoExercício-LinhaInicialDoExercício-H34,2)<>\"\",INDEX(Exercício[],FimDoExercício-LinhaInicialDoExercício-H34,3),0)),0)","v":285},10]
[{"$nulls":3},{"$f":"IFERROR(IF(INDEX(Exercício[],FimDoExercício-LinhaInicialDoExercício-H35,1)<>\"\",INDEX(Exercício[],FimDoExercício-LinhaInicialDoExercício-H35,1)),\"\")","v":"2017-05-17"},"QUA",{"$f":"IFERROR((IF(INDEX(Exercício[],FimDoExercício-LinhaInicialDoExercício-H35,1)<>\"\",INDEX(Exercício[],FimDoExercício-LinhaInicialDoExercício-H35,2),0)),0)","v":25},{"$f":"IFERROR((IF(INDEX(Exercício[],FimDoExercício-LinhaInicialDoExercício-H35,2)<>\"\",INDEX(Exercício[],FimDoExercício-LinhaInicialDoExercício-H35,3),0)),0)","v":125},11]
[{"$nulls":3},{"$f":"IFERROR(IF(INDEX(Exercício[],FimDoExercício-LinhaInicialDoExercício-H36,1)<>\"\",INDEX(Exercício[],FimDoExercício-LinhaInicialDoExercício-H36,1)),\"\")","v":"2017-05-16"},"TER",{"$f":"IFERROR((IF(INDEX(Exercício[],FimDoExercício-LinhaInicialDoExercício-H36,1)<>\"\",INDEX(Exercício[],FimDoExercício-LinhaInicialDoExercício-H36,2),0)),0)","v":30},{"$f":"IFERROR((IF(INDEX(Exercício[],FimDoExercício-LinhaInicialDoExercício-H36,2)<>\"\",INDEX(Exercício[],FimDoExercício-LinhaInicialDoExercício-H36,3),0)),0)","v":150},12]
[]
[]
[]
[]
[{"$nulls":5},", "]